Workbook

Sheet Rankingi
C1: Ranking liniowy (według funkcji liniowej) z wagami miesięcznika Perspektywy Linear ranking (by a linear function) with weights as in Perspektywy 2016 ranking | F1: Ranking liniowy (według funkcji liniowej) według wag własnych Linear ranking (by a linear function) with one's own weights | I1: Ranking zrównoważony (funkcja Czebyszewa) według wag własnych Balanced ranking (Czebyshev function) with one's own weights | L1: Ranking zrównoważony (funkcja Czebyszewa) według obiektu bazowego Balanced ranking (Czebyshev function) defined by a base object (here: university)
B2: Prestiż | F2: 0 | I2: 27 | L2: =Roboczy!B7 -> 11.77515589
B3: Innowacyjność | F3: 100 | I3: 9 | L3: =Roboczy!C7 -> 1.273352088
B4: Potenencjał naukowy | F4: 0 | I4: 15 | L4: =Roboczy!D7 -> 14.43406206
B5: Efektywność naukowa | F5: 0 | I5: 25 | L5: =Roboczy!E7 -> 67.11838858
B6: Warunki kształcenia | F6: 0 | I6: 9 | L6: =Roboczy!F7 -> 3.962124474 | M6: Obiekt bazowy - lp wdłg. arkusza Dane
B7: Umiędzynarodowienie | F7: 0 | I7: 15 | L7: =Roboczy!G7 -> 1.436916904 | M7: 1
B8: Suma wag | F8: =SUM(F2:F7) -> 100 | I8: 100 | L8: 100
D9: wartość | E9: pozycja w rankingu | G9: wartość | H9: pozycja w rankingu | J9: wartość | K9: pozycja w rankingu | M9: wartość | N9: pozycja w rankingu
C10: Uniwersytet Warszawski | E10: 1 | F10: Politechnika_Lubelska | G10: =$F$2*Dane!H35+$F$3*Dane!I35+$F$4*Dane!J35+$F$5*Dane!K35+$F$6*Dane!L35+$F$7*Dane!M35 -> 10000 | H10: 1 | I10: Uniwersytet_Warszawski | J10: =MAX(Rankingi!$I$2*(101-Dane!H3),Rankingi!$I$3*(101-Dane!I3),Rankingi!$I$4*(101-Dane!J3),Rankingi!$I$5*(101-Dane!K3),Rankingi!$I$6*(101-Dane!L3),Rankingi!$I$7*(101-Dane!M3)) -> 700.65 | K10: 1 | L10: Uniwersytet_Warszawski | M10: =MAX(Rankingi!$L$2*(101-Dane!H3),Rankingi!$L$3*(101-Dane!I3),Rankingi!$L$4*(101-Dane!J3),Rankingi!$L$5*(101-Dane!K3),Rankingi!$L$6*(101-Dane!L3),Rankingi!$L$7*(101-Dane!M3)) -> 67.11838858 | N10: 1
C11: Uniwersytet Jagielloński | E11: 2 | F11: Politechnika_Wrocławska | G11: =$F$2*Dane!H7+$F$3*Dane!I7+$F$4*Dane!J7+$F$5*Dane!K7+$F$6*Dane!L7+$F$7*Dane!M7 -> 8979 | H11: 2 | I11: Uniwersytet_Jagielloński | J11: =MAX(Rankingi!$I$2*(101-Dane!H4),Rankingi!$I$3*(101-Dane!I4),Rankingi!$I$4*(101-Dane!J4),Rankingi!$I$5*(101-Dane!K4),Rankingi!$I$6*(101-Dane!L4),Rankingi!$I$7*(101-Dane!M4)) -> 713.4 | K11: 2 | L11: Uniwersytet_Śląski_w_Katowicach | M11: =MAX(Rankingi!$L$2*(101-Dane!H15),Rankingi!$L$3*(101-Dane!I15),Rankingi!$L$4*(101-Dane!J15),Rankingi!$L$5*(101-Dane!K15),Rankingi!$L$6*(101-Dane!L15),Rankingi!$L$7*(101-Dane!M15)) -> 899.386407 | N11: 2
C12: Uniwersytet im. Adama Mickiewicza w Poznaniu | E12: 3 | F12: Akademia_Górniczo-Hutnicza_im._Stanisława_Staszica_w_Krakowie | G12: =$F$2*Dane!H8+$F$3*Dane!I8+$F$4*Dane!J8+$F$5*Dane!K8+$F$6*Dane!L8+$F$7*Dane!M8 -> 6875 | H12: 3 | I12: Uniwersytet_im._Adama_Mickiewicza_w_Poznaniu | J12: =MAX(Rankingi!$I$2*(101-Dane!H6),Rankingi!$I$3*(101-Dane!I6),Rankingi!$I$4*(101-Dane!J6),Rankingi!$I$5*(101-Dane!K6),Rankingi!$I$6*(101-Dane!L6),Rankingi!$I$7*(101-Dane!M6)) -> 795.69 | K12: 3 | L12: Gdański_Uniwersytet_Medyczny | M12: =MAX(Rankingi!$L$2*(101-Dane!H11),Rankingi!$L$3*(101-Dane!I11),Rankingi!$L$4*(101-Dane!J11),Rankingi!$L$5*(101-Dane!K11),Rankingi!$L$6*(101-Dane!L11),Rankingi!$L$7*(101-Dane!M11)) -> 1039.663839 | N12: 3
C13: Politechnika Warszawska | E13: 4 | F13: Politechnika_Gdańska | G13: =$F$2*Dane!H17+$F$3*Dane!I17+$F$4*Dane!J17+$F$5*Dane!K17+$F$6*Dane!L17+$F$7*Dane!M17 -> 6764 | H13: 4 | I13: Politechnika_Warszawska | J13: =MAX(Rankingi!$I$2*(101-Dane!H5),Rankingi!$I$3*(101-Dane!I5),Rankingi!$I$4*(101-Dane!J5),Rankingi!$I$5*(101-Dane!K5),Rankingi!$I$6*(101-Dane!L5),Rankingi!$I$7*(101-Dane!M5)) -> 1027.35 | K13: 4 | L13: Uniwersytet_Jagielloński | M13: =MAX(Rankingi!$L$2*(101-Dane!H4),Rankingi!$L$3*(101-Dane!I4),Rankingi!$L$4*(101-Dane!J4),Rankingi!$L$5*(101-Dane!K4),Rankingi!$L$6*(101-Dane!L4),Rankingi!$L$7*(101-Dane!M4)) -> 1066.511195 | N13: 4
C14: Politechnika Wrocławska | E14: 5 | F14: Politechnika_Łódzka | G14: =$F$2*Dane!H16+$F$3*Dane!I16+$F$4*Dane!J16+$F$5*Dane!K16+$F$6*Dane!L16+$F$7*Dane!M16 -> 6623 | H14: 5 | I14: Politechnika_Wrocławska | J14: =MAX(Rankingi!$I$2*(101-Dane!H8),Rankingi!$I$3*(101-Dane!I8),Rankingi!$I$4*(101-Dane!J8),Rankingi!$I$5*(101-Dane!K8),Rankingi!$I$6*(101-Dane!L8),Rankingi!$I$7*(101-Dane!M8)) -> 1109.97 | K14: 5 | L14: Akademia_Górniczo-Hutnicza_im._Stanisława_Staszica_w_Krakowie | M14: =MAX(Rankingi!$L$2*(101-Dane!H8),Rankingi!$L$3*(101-Dane!I8),Rankingi!$L$4*(101-Dane!J8),Rankingi!$L$5*(101-Dane!K8),Rankingi!$L$6*(101-Dane!L8),Rankingi!$L$7*(101-Dane!M8)) -> 1240.347821 | N14: 5
C15: Akademia Górniczo-Hutnicza im. Stanisława Staszica w Krakowie | E15: 6 | F15: Zachodniopomorski_Uniwersytet_Technologiczny_w_Szczecinie | G15: =$F$2*Dane!H41+$F$3*Dane!I41+$F$4*Dane!J41+$F$5*Dane!K41+$F$6*Dane!L41+$F$7*Dane!M41 -> 5066 | H15: 6 | I15: Akademia_Górniczo-Hutnicza_im._Stanisława_Staszica_w_Krakowie | J15: =MAX(Rankingi!$I$2*(101-Dane!H7),Rankingi!$I$3*(101-Dane!I7),Rankingi!$I$4*(101-Dane!J7),Rankingi!$I$5*(101-Dane!K7),Rankingi!$I$6*(101-Dane!L7),Rankingi!$I$7*(101-Dane!M7)) -> 1221.21 | K15: 6 | L15: Uniwersytet_Wrocławski | M15: =MAX(Rankingi!$L$2*(101-Dane!H9),Rankingi!$L$3*(101-Dane!I9),Rankingi!$L$4*(101-Dane!J9),Rankingi!$L$5*(101-Dane!K9),Rankingi!$L$6*(101-Dane!L9),Rankingi!$L$7*(101-Dane!M9)) -> 1291.357796 | N15: 6
C16: Uniwersytet Wrocławski | E16: 7 | F16: Uniwersytet_Warszawski | G16: =$F$2*Dane!H3+$F$3*Dane!I3+$F$4*Dane!J3+$F$5*Dane!K3+$F$6*Dane!L3+$F$7*Dane!M3 -> 4829 | H16: 7 | I16: Uniwersytet_Wrocławski | J16: =MAX(Rankingi!$I$2*(101-Dane!H9),Rankingi!$I$3*(101-Dane!I9),Rankingi!$I$4*(101-Dane!J9),Rankingi!$I$5*(101-Dane!K9),Rankingi!$I$6*(101-Dane!L9),Rankingi!$I$7*(101-Dane!M9)) -> 1301.67 | K16: 7 | L16: Uniwersytet_im._Adama_Mickiewicza_w_Poznaniu | M16: =MAX(Rankingi!$L$2*(101-Dane!H5),Rankingi!$L$3*(101-Dane!I5),Rankingi!$L$4*(101-Dane!J5),Rankingi!$L$5*(101-Dane!K5),Rankingi!$L$6*(101-Dane!L5),Rankingi!$L$7*(101-Dane!M5)) -> 1295.3849 | N16: 7
C17: Warszawski Uniwersytet Medyczny | E17: 8 | F17: Politechnika_Rzeszowska_im._Ignacego_Łukasiewicza | G17: =$F$2*Dane!H47+$F$3*Dane!I47+$F$4*Dane!J47+$F$5*Dane!K47+$F$6*Dane!L47+$F$7*Dane!M47 -> 4702 | H17: 8 | I17: Warszawski_Uniwersytet_Medyczny | J17: =MAX(Rankingi!$I$2*(101-Dane!H13),Rankingi!$I$3*(101-Dane!I13),Rankingi!$I$4*(101-Dane!J13),Rankingi!$I$5*(101-Dane!K13),Rankingi!$I$6*(101-Dane!L13),Rankingi!$I$7*(101-Dane!M13)) -> 1390.77 | K17: 8 | L17: Uniwersytet_Marii_Curie-Skłodowskiej_w_Lublinie | M17: =MAX(Rankingi!$L$2*(101-Dane!H28),Rankingi!$L$3*(101-Dane!I28),Rankingi!$L$4*(101-Dane!J28),Rankingi!$L$5*(101-Dane!K28),Rankingi!$L$6*(101-Dane!L28),Rankingi!$L$7*(101-Dane!M28)) -> 1298.740819 | N17: 8
C18: Gdański Uniwersytet Medyczny | E18: 9 | F18: Uniwersytet_im._Adama_Mickiewicza_w_Poznaniu | G18: =$F$2*Dane!H5+$F$3*Dane!I5+$F$4*Dane!J5+$F$5*Dane!K5+$F$6*Dane!L5+$F$7*Dane!M5 -> 4684 | H18: 9 | I18: Gdański_Uniwersytet_Medyczny | J18: =MAX(Rankingi!$I$2*(101-Dane!H10),Rankingi!$I$3*(101-Dane!I10),Rankingi!$I$4*(101-Dane!J10),Rankingi!$I$5*(101-Dane!K10),Rankingi!$I$6*(101-Dane!L10),Rankingi!$I$7*(101-Dane!M10)) -> 1511.46 | K18: 9 | L18: Politechnika_Warszawska | M18: =MAX(Rankingi!$L$2*(101-Dane!H6),Rankingi!$L$3*(101-Dane!I6),Rankingi!$L$4*(101-Dane!J6),Rankingi!$L$5*(101-Dane!K6),Rankingi!$L$6*(101-Dane!L6),Rankingi!$L$7*(101-Dane!M6)) -> 1426.936941 | N18: 9
C19: Uniwersytet Mikołaja Kopernika w Toruniu | E19: 10 | F19: Politechnika_Warszawska | G19: =$F$2*Dane!H6+$F$3*Dane!I6+$F$4*Dane!J6+$F$5*Dane!K6+$F$6*Dane!L6+$F$7*Dane!M6 -> 4440 | H19: 10 | I19: Uniwersytet_Mikołaja_Kopernika_w_Toruniu | J19: =MAX(Rankingi!$I$2*(101-Dane!H12),Rankingi!$I$3*(101-Dane!I12),Rankingi!$I$4*(101-Dane!J12),Rankingi!$I$5*(101-Dane!K12),Rankingi!$I$6*(101-Dane!L12),Rankingi!$I$7*(101-Dane!M12)) -> 1519.29 | K19: 10 | L19: Uniwersytet_w_Białymstoku | M19: =MAX(Rankingi!$L$2*(101-Dane!H39),Rankingi!$L$3*(101-Dane!I39),Rankingi!$L$4*(101-Dane!J39),Rankingi!$L$5*(101-Dane!K39),Rankingi!$L$6*(101-Dane!L39),Rankingi!$L$7*(101-Dane!M39)) -> 1483.316388 | N19: 10
C20: Szkoła Główna Handlowa w Warszawie | E20: 11 | F20: Politechnika_Poznańska | G20: =$F$2*Dane!H19+$F$3*Dane!I19+$F$4*Dane!J19+$F$5*Dane!K19+$F$6*Dane!L19+$F$7*Dane!M19 -> 4386 | H20: 11 | I20: Szkoła_Główna_Handlowa_w_Warszawie | J20: =MAX(Rankingi!$I$2*(101-Dane!H21),Rankingi!$I$3*(101-Dane!I21),Rankingi!$I$4*(101-Dane!J21),Rankingi!$I$5*(101-Dane!K21),Rankingi!$I$6*(101-Dane!L21),Rankingi!$I$7*(101-Dane!M21)) -> 1552.5 | K20: 11 | L20: Uniwersytet_Medyczny_im._Karola_Marcinkowskiego_w_Poznaniu | M20: =MAX(Rankingi!$L$2*(101-Dane!H14),Rankingi!$L$3*(101-Dane!I14),Rankingi!$L$4*(101-Dane!J14),Rankingi!$L$5*(101-Dane!K14),Rankingi!$L$6*(101-Dane!L14),Rankingi!$L$7*(101-Dane!M14)) -> 1502.109536 | N20: 11
C21: Uniwersytet Medyczny im. Karola Marcinkowskiego w Poznaniu | E21: 12 | F21: Uniwersytet_Przyrodniczy_we_Wrocławiu | G21: =$F$2*Dane!H31+$F$3*Dane!I31+$F$4*Dane!J31+$F$5*Dane!K31+$F$6*Dane!L31+$F$7*Dane!M31 -> 4363 | H21: 12 | I21: Uniwersytet_Medyczny_im._Karola_Marcinkowskiego_w_Poznaniu | J21: =MAX(Rankingi!$I$2*(101-Dane!H29),Rankingi!$I$3*(101-Dane!I29),Rankingi!$I$4*(101-Dane!J29),Rankingi!$I$5*(101-Dane!K29),Rankingi!$I$6*(101-Dane!L29),Rankingi!$I$7*(101-Dane!M29)) -> 1609.2 | K21: 12 | L21: Warszawski_Uniwersytet_Medyczny | M21: =MAX(Rankingi!$L$2*(101-Dane!H10),Rankingi!$L$3*(101-Dane!I10),Rankingi!$L$4*(101-Dane!J10),Rankingi!$L$5*(101-Dane!K10),Rankingi!$L$6*(101-Dane!L10),Rankingi!$L$7*(101-Dane!M10)) -> 1635.67513 | N21: 12
C22: Uniwersytet Śląski w Katowicach | E22: 13 | F22: Uniwersytet_Medyczny_w_Lublinie | G22: =$F$2*Dane!H26+$F$3*Dane!I26+$F$4*Dane!J26+$F$5*Dane!K26+$F$6*Dane!L26+$F$7*Dane!M26 -> 3216 | H22: 13 | I22: Uniwersytet_Śląski_w_Katowicach | J22: =MAX(Rankingi!$I$2*(101-Dane!H19),Rankingi!$I$3*(101-Dane!I19),Rankingi!$I$4*(101-Dane!J19),Rankingi!$I$5*(101-Dane!K19),Rankingi!$I$6*(101-Dane!L19),Rankingi!$I$7*(101-Dane!M19)) -> 1656.18 | K22: 13 | L22: Pomorski_Uniwersytet_Medyczny_w_Szczecinie | M22: =MAX(Rankingi!$L$2*(101-Dane!H34),Rankingi!$L$3*(101-Dane!I34),Rankingi!$L$4*(101-Dane!J34),Rankingi!$L$5*(101-Dane!K34),Rankingi!$L$6*(101-Dane!L34),Rankingi!$L$7*(101-Dane!M34)) -> 1753.803494 | N22: 13
C23: Politechnika Łódzka | E23: 14 | F23: Uniwersytet_Jagielloński | G23: =$F$2*Dane!H4+$F$3*Dane!I4+$F$4*Dane!J4+$F$5*Dane!K4+$F$6*Dane!L4+$F$7*Dane!M4 -> 3048 | H23: 14 | I23: Politechnika_Łódzka | J23: =MAX(Rankingi!$I$2*(101-Dane!H24),Rankingi!$I$3*(101-Dane!I24),Rankingi!$I$4*(101-Dane!J24),Rankingi!$I$5*(101-Dane!K24),Rankingi!$I$6*(101-Dane!L24),Rankingi!$I$7*(101-Dane!M24)) -> 1664.82 | K23: 14 | L23: Uniwersytet_Medyczny_w_Białymstoku | M23: =MAX(Rankingi!$L$2*(101-Dane!H27),Rankingi!$L$3*(101-Dane!I27),Rankingi!$L$4*(101-Dane!J27),Rankingi!$L$5*(101-Dane!K27),Rankingi!$L$6*(101-Dane!L27),Rankingi!$L$7*(101-Dane!M27)) -> 1755.145861 | N23: 14
C24: Politechnika Gdańska | E24: 15 | F24: Politechnika_Śląska_w_Gliwicach | G24: =$F$2*Dane!H21+$F$3*Dane!I21+$F$4*Dane!J21+$F$5*Dane!K21+$F$6*Dane!L21+$F$7*Dane!M21 -> 3044 | H24: 15 | I24: Politechnika_Gdańska | J24: =MAX(Rankingi!$I$2*(101-Dane!H15),Rankingi!$I$3*(101-Dane!I15),Rankingi!$I$4*(101-Dane!J15),Rankingi!$I$5*(101-Dane!K15),Rankingi!$I$6*(101-Dane!L15),Rankingi!$I$7*(101-Dane!M15)) -> 1674.27 | K24: 15 | L24: Uniwersytet_Medyczny_im._Piastów_Śląskich_we_Wrocławiu | M24: =MAX(Rankingi!$L$2*(101-Dane!H20),Rankingi!$L$3*(101-Dane!I20),Rankingi!$L$4*(101-Dane!J20),Rankingi!$L$5*(101-Dane!K20),Rankingi!$L$6*(101-Dane!L20),Rankingi!$L$7*(101-Dane!M20)) -> 1890.053822 | N24: 15
C25: Uniwersytet Łódzki | E25: 16 | F25: Uniwersytet_Warmińsko-Mazurski_w_Olsztynie | G25: =$F$2*Dane!H37+$F$3*Dane!I37+$F$4*Dane!J37+$F$5*Dane!K37+$F$6*Dane!L37+$F$7*Dane!M37 -> 3033 | H25: 16 | I25: Uniwersytet_Łódzki | J25: =MAX(Rankingi!$I$2*(101-Dane!H18),Rankingi!$I$3*(101-Dane!I18),Rankingi!$I$4*(101-Dane!J18),Rankingi!$I$5*(101-Dane!K18),Rankingi!$I$6*(101-Dane!L18),Rankingi!$I$7*(101-Dane!M18)) -> 1750.14 | K25: 16 | L25: Śląski_Uniwersytet_Medyczny_w_Katowicach | M25: =MAX(Rankingi!$L$2*(101-Dane!H32),Rankingi!$L$3*(101-Dane!I32),Rankingi!$L$4*(101-Dane!J32),Rankingi!$L$5*(101-Dane!K32),Rankingi!$L$6*(101-Dane!L32),Rankingi!$L$7*(101-Dane!M32)) -> 1896.765661 | N25: 16
C26: Politechnika Poznańska | E26: 17 | F26: Uniwersytet_Przyrodniczy_w_Lublinie | G26: =$F$2*Dane!H50+$F$3*Dane!I50+$F$4*Dane!J50+$F$5*Dane!K50+$F$6*Dane!L50+$F$7*Dane!M50 -> 2954 | H26: 17 | I26: Politechnika_Poznańska | J26: =MAX(Rankingi!$I$2*(101-Dane!H23),Rankingi!$I$3*(101-Dane!I23),Rankingi!$I$4*(101-Dane!J23),Rankingi!$I$5*(101-Dane!K23),Rankingi!$I$6*(101-Dane!L23),Rankingi!$I$7*(101-Dane!M23)) -> 1765.8 | K26: 17 | L26: Uniwersytet_Medyczny_w_Łodzi | M26: =MAX(Rankingi!$L$2*(101-Dane!H22),Rankingi!$L$3*(101-Dane!I22),Rankingi!$L$4*(101-Dane!J22),Rankingi!$L$5*(101-Dane!K22),Rankingi!$L$6*(101-Dane!L22),Rankingi!$L$7*(101-Dane!M22)) -> 1905.491052 | N26: 17
C27: Uniwersytet Medyczny im. Piastów Śląskich we Wrocławiu | E27: 18 | F27: Politechnika_Opolska | G27: =$F$2*Dane!H51+$F$3*Dane!I51+$F$4*Dane!J51+$F$5*Dane!K51+$F$6*Dane!L51+$F$7*Dane!M51 -> 2874 | H27: 18 | I27: Uniwersytet_Medyczny_im._Piastów_Śląskich_we_Wrocławiu | J27: =MAX(Rankingi!$I$2*(101-Dane!H28),Rankingi!$I$3*(101-Dane!I28),Rankingi!$I$4*(101-Dane!J28),Rankingi!$I$5*(101-Dane!K28),Rankingi!$I$6*(101-Dane!L28),Rankingi!$I$7*(101-Dane!M28)) -> 1791.45 | K27: 18 | L27: Uniwersytet_Łódzki | M27: =MAX(Rankingi!$L$2*(101-Dane!H18),Rankingi!$L$3*(101-Dane!I18),Rankingi!$L$4*(101-Dane!J18),Rankingi!$L$5*(101-Dane!K18),Rankingi!$L$6*(101-Dane!L18),Rankingi!$L$7*(101-Dane!M18)) -> 1928.982488 | N27: 18
C28: Politechnika Śląska w Gliwicach | E28: 19 | F28: Uniwersytet_Gdański | G28: =$F$2*Dane!H23+$F$3*Dane!I23+$F$4*Dane!J23+$F$5*Dane!K23+$F$6*Dane!L23+$F$7*Dane!M23 -> 2790 | H28: 19 | I28: Politechnika_Śląska_w_Gliwicach | J28: =MAX(Rankingi!$I$2*(101-Dane!H16),Rankingi!$I$3*(101-Dane!I16),Rankingi!$I$4*(101-Dane!J16),Rankingi!$I$5*(101-Dane!K16),Rankingi!$I$6*(101-Dane!L16),Rankingi!$I$7*(101-Dane!M16)) -> 1793.61 | K28: 19 | L28: Uniwersytet_Mikołaja_Kopernika_w_Toruniu | M28: =MAX(Rankingi!$L$2*(101-Dane!H12),Rankingi!$L$3*(101-Dane!I12),Rankingi!$L$4*(101-Dane!J12),Rankingi!$L$5*(101-Dane!K12),Rankingi!$L$6*(101-Dane!L12),Rankingi!$L$7*(101-Dane!M12)) -> 1950.460372 | N28: 19
C29: Uniwersytet Medyczny w Łodzi | E29: 20 | F29: Uniwersytet_Śląski_w_Katowicach | G29: =$F$2*Dane!H15+$F$3*Dane!I15+$F$4*Dane!J15+$F$5*Dane!K15+$F$6*Dane!L15+$F$7*Dane!M15 -> 2704 | H29: 20 | I29: Uniwersytet_Medyczny_w_Łodzi | J29: =MAX(Rankingi!$I$2*(101-Dane!H43),Rankingi!$I$3*(101-Dane!I43),Rankingi!$I$4*(101-Dane!J43),Rankingi!$I$5*(101-Dane!K43),Rankingi!$I$6*(101-Dane!L43),Rankingi!$I$7*(101-Dane!M43)) -> 1812.78 | K29: 20 | L29: Politechnika_Poznańska | M29: =MAX(Rankingi!$L$2*(101-Dane!H19),Rankingi!$L$3*(101-Dane!I19),Rankingi!$L$4*(101-Dane!J19),Rankingi!$L$5*(101-Dane!K19),Rankingi!$L$6*(101-Dane!L19),Rankingi!$L$7*(101-Dane!M19)) -> 2097.449643 | N29: 20
C30: Uniwersytet Gdański | E30: 21 | F30: Uniwersytet_Marii_Curie-Skłodowskiej_w_Lublinie | G30: =$F$2*Dane!H28+$F$3*Dane!I28+$F$4*Dane!J28+$F$5*Dane!K28+$F$6*Dane!L28+$F$7*Dane!M28 -> 2142 | H30: 21 | I30: Uniwersytet_Gdański | J30: =MAX(Rankingi!$I$2*(101-Dane!H30),Rankingi!$I$3*(101-Dane!I30),Rankingi!$I$4*(101-Dane!J30),Rankingi!$I$5*(101-Dane!K30),Rankingi!$I$6*(101-Dane!L30),Rankingi!$I$7*(101-Dane!M30)) -> 1827.63 | K30: 21 | L30: Wojskowa_Akademia_Techniczna_im._Jarosława_Dąbrowskiego_w_Warszawie | M30: =MAX(Rankingi!$L$2*(101-Dane!H38),Rankingi!$L$3*(101-Dane!I38),Rankingi!$L$4*(101-Dane!J38),Rankingi!$L$5*(101-Dane!K38),Rankingi!$L$6*(101-Dane!L38),Rankingi!$L$7*(101-Dane!M38)) -> 2163.896848 | N30: 21
C31: Uniwersytet Ekonomiczny w Poznaniu | E31: 22 | F31: Uniwersytet_Łódzki | G31: =$F$2*Dane!H18+$F$3*Dane!I18+$F$4*Dane!J18+$F$5*Dane!K18+$F$6*Dane!L18+$F$7*Dane!M18 -> 2106 | H31: 22 | I31: Uniwersytet_Ekonomiczny_w_Poznaniu | J31: =MAX(Rankingi!$I$2*(101-Dane!H17),Rankingi!$I$3*(101-Dane!I17),Rankingi!$I$4*(101-Dane!J17),Rankingi!$I$5*(101-Dane!K17),Rankingi!$I$6*(101-Dane!L17),Rankingi!$I$7*(101-Dane!M17)) -> 1836 | K31: 22 | L31: Uniwersytet_Gdański | M31: =MAX(Rankingi!$L$2*(101-Dane!H23),Rankingi!$L$3*(101-Dane!I23),Rankingi!$L$4*(101-Dane!J23),Rankingi!$L$5*(101-Dane!K23),Rankingi!$L$6*(101-Dane!L23),Rankingi!$L$7*(101-Dane!M23)) -> 2193.428939 | N31: 22
C32: Akademia Leona Komińskiego w Warszawie | E32: 23 | F32: Politechnika_Krakowska_im._Tadeusza_Kociuszki | G32: =$F$2*Dane!H43+$F$3*Dane!I43+$F$4*Dane!J43+$F$5*Dane!K43+$F$6*Dane!L43+$F$7*Dane!M43 -> 2080 | H32: 23 | I32: Akademia_Leona_Komińskiego_w_Warszawie | J32: =MAX(Rankingi!$I$2*(101-Dane!H25),Rankingi!$I$3*(101-Dane!I25),Rankingi!$I$4*(101-Dane!J25),Rankingi!$I$5*(101-Dane!K25),Rankingi!$I$6*(101-Dane!L25),Rankingi!$I$7*(101-Dane!M25)) -> 1870.02 | K32: 23 | L32: Uniwersytet_Przyrodniczy_w_Poznaniu | M32: =MAX(Rankingi!$L$2*(101-Dane!H30),Rankingi!$L$3*(101-Dane!I30),Rankingi!$L$4*(101-Dane!J30),Rankingi!$L$5*(101-Dane!K30),Rankingi!$L$6*(101-Dane!L30),Rankingi!$L$7*(101-Dane!M30)) -> 2371.963852 | N32: 23
C33: Uniwersytet Medyczny w Lublinie | E33: 24 | F33: Uniwersytet_Medyczny_im._Piastów_Śląskich_we_Wrocławiu | G33: =$F$2*Dane!H20+$F$3*Dane!I20+$F$4*Dane!J20+$F$5*Dane!K20+$F$6*Dane!L20+$F$7*Dane!M20 -> 2072 | H33: 24 | I33: Uniwersytet_Medyczny_w_Lublinie | J33: =MAX(Rankingi!$I$2*(101-Dane!H42),Rankingi!$I$3*(101-Dane!I42),Rankingi!$I$4*(101-Dane!J42),Rankingi!$I$5*(101-Dane!K42),Rankingi!$I$6*(101-Dane!L42),Rankingi!$I$7*(101-Dane!M42)) -> 1890.54 | K33: 24 | L33: Politechnika_Wrocławska | M33: =MAX(Rankingi!$L$2*(101-Dane!H7),Rankingi!$L$3*(101-Dane!I7),Rankingi!$L$4*(101-Dane!J7),Rankingi!$L$5*(101-Dane!K7),Rankingi!$L$6*(101-Dane!L7),Rankingi!$L$7*(101-Dane!M7)) -> 2424.987379 | N33: 24
C34: Uniwersytet Medyczny w Białymstoku | E34: 25 | F34: Uniwersytet_Mikołaja_Kopernika_w_Toruniu | G34: =$F$2*Dane!H12+$F$3*Dane!I12+$F$4*Dane!J12+$F$5*Dane!K12+$F$6*Dane!L12+$F$7*Dane!M12 -> 1997 | H34: 25 | I34: Uniwersytet_Medyczny_w_Białymstoku | J34: =MAX(Rankingi!$I$2*(101-Dane!H33),Rankingi!$I$3*(101-Dane!I33),Rankingi!$I$4*(101-Dane!J33),Rankingi!$I$5*(101-Dane!K33),Rankingi!$I$6*(101-Dane!L33),Rankingi!$I$7*(101-Dane!M33)) -> 1900.53 | K34: 25 | L34: Uniwersytet_Medyczny_w_Lublinie | M34: =MAX(Rankingi!$L$2*(101-Dane!H26),Rankingi!$L$3*(101-Dane!I26),Rankingi!$L$4*(101-Dane!J26),Rankingi!$L$5*(101-Dane!K26),Rankingi!$L$6*(101-Dane!L26),Rankingi!$L$7*(101-Dane!M26)) -> 2496.132871 | N34: 25
C35: Uniwersytet Marii Curie-Skłodowskiej w Lublinie | E35: 26 | F35: Uniwersytet_w_Białymstoku | G35: =$F$2*Dane!H39+$F$3*Dane!I39+$F$4*Dane!J39+$F$5*Dane!K39+$F$6*Dane!L39+$F$7*Dane!M39 -> 1777 | H35: 26 | I35: Uniwersytet_Marii_Curie-Skłodowskiej_w_Lublinie | J35: =MAX(Rankingi!$I$2*(101-Dane!H22),Rankingi!$I$3*(101-Dane!I22),Rankingi!$I$4*(101-Dane!J22),Rankingi!$I$5*(101-Dane!K22),Rankingi!$I$6*(101-Dane!L22),Rankingi!$I$7*(101-Dane!M22)) -> 1912.14 | K35: 26 | L35: Politechnika_Gdańska | M35: =MAX(Rankingi!$L$2*(101-Dane!H17),Rankingi!$L$3*(101-Dane!I17),Rankingi!$L$4*(101-Dane!J17),Rankingi!$L$5*(101-Dane!K17),Rankingi!$L$6*(101-Dane!L17),Rankingi!$L$7*(101-Dane!M17)) -> 2536.403905 | N35: 26
C36: Szkoła Główna Gospodarstwa Wiejskiego w Warszawie | E36: 27 | F36: Wojskowa_Akademia_Techniczna_im._Jarosława_Dąbrowskiego_w_Warszawie | G36: =$F$2*Dane!H38+$F$3*Dane!I38+$F$4*Dane!J38+$F$5*Dane!K38+$F$6*Dane!L38+$F$7*Dane!M38 -> 1600 | H36: 27 | I36: Szkoła_Główna_Gospodarstwa_Wiejskiego_w_Warszawie | J36: =MAX(Rankingi!$I$2*(101-Dane!H40),Rankingi!$I$3*(101-Dane!I40),Rankingi!$I$4*(101-Dane!J40),Rankingi!$I$5*(101-Dane!K40),Rankingi!$I$6*(101-Dane!L40),Rankingi!$I$7*(101-Dane!M40)) -> 1913.76 | K36: 27 | L36: Katolicki_Uniwersytet_Lubelski_Jana_Pawła_II | M36: =MAX(Rankingi!$L$2*(101-Dane!H33),Rankingi!$L$3*(101-Dane!I33),Rankingi!$L$4*(101-Dane!J33),Rankingi!$L$5*(101-Dane!K33),Rankingi!$L$6*(101-Dane!L33),Rankingi!$L$7*(101-Dane!M33)) -> 2602.179925 | N36: 27
C37: Uniwersytet Przyrodniczy w Poznaniu | E37: 28 | F37: Szkoła_Główna_Gospodarstwa_Wiejskiego_w_Warszawie | G37: =$F$2*Dane!H29+$F$3*Dane!I29+$F$4*Dane!J29+$F$5*Dane!K29+$F$6*Dane!L29+$F$7*Dane!M29 -> 1546 | H37: 28 | I37: Uniwersytet_Przyrodniczy_w_Poznaniu | J37: =MAX(Rankingi!$I$2*(101-Dane!H20),Rankingi!$I$3*(101-Dane!I20),Rankingi!$I$4*(101-Dane!J20),Rankingi!$I$5*(101-Dane!K20),Rankingi!$I$6*(101-Dane!L20),Rankingi!$I$7*(101-Dane!M20)) -> 1920.78 | K37: 28 | L37: Uniwersytet_Przyrodniczy_we_Wrocławiu | M37: =MAX(Rankingi!$L$2*(101-Dane!H31),Rankingi!$L$3*(101-Dane!I31),Rankingi!$L$4*(101-Dane!J31),Rankingi!$L$5*(101-Dane!K31),Rankingi!$L$6*(101-Dane!L31),Rankingi!$L$7*(101-Dane!M31)) -> 2665.271211 | N37: 28
C38: Uniwersytet Przyrodniczy we Wrocławiu | E38: 29 | F38: Warszawski_Uniwersytet_Medyczny | G38: =$F$2*Dane!H10+$F$3*Dane!I10+$F$4*Dane!J10+$F$5*Dane!K10+$F$6*Dane!L10+$F$7*Dane!M10 -> 1524 | H38: 29 | I38: Uniwersytet_Przyrodniczy_we_Wrocławiu | J38: =MAX(Rankingi!$I$2*(101-Dane!H37),Rankingi!$I$3*(101-Dane!I37),Rankingi!$I$4*(101-Dane!J37),Rankingi!$I$5*(101-Dane!K37),Rankingi!$I$6*(101-Dane!L37),Rankingi!$I$7*(101-Dane!M37)) -> 1928.07 | K38: 29 | L38: Politechnika_Śląska_w_Gliwicach | M38: =MAX(Rankingi!$L$2*(101-Dane!H21),Rankingi!$L$3*(101-Dane!I21),Rankingi!$L$4*(101-Dane!J21),Rankingi!$L$5*(101-Dane!K21),Rankingi!$L$6*(101-Dane!L21),Rankingi!$L$7*(101-Dane!M21)) -> 2735.745519 | N38: 29
C39: Śląski Uniwersytet Medyczny w Katowicach | E39: 30 | F39: Pomorski_Uniwersytet_Medyczny_w_Szczecinie | G39: =$F$2*Dane!H34+$F$3*Dane!I34+$F$4*Dane!J34+$F$5*Dane!K34+$F$6*Dane!L34+$F$7*Dane!M34 -> 1332 | H39: 30 | I39: Śląski_Uniwersytet_Medyczny_w_Katowicach | J39: =MAX(Rankingi!$I$2*(101-Dane!H31),Rankingi!$I$3*(101-Dane!I31),Rankingi!$I$4*(101-Dane!J31),Rankingi!$I$5*(101-Dane!K31),Rankingi!$I$6*(101-Dane!L31),Rankingi!$I$7*(101-Dane!M31)) -> 1959.39 | K39: 30 | L39: Politechnika_Lubelska | M39: =MAX(Rankingi!$L$2*(101-Dane!H35),Rankingi!$L$3*(101-Dane!I35),Rankingi!$L$4*(101-Dane!J35),Rankingi!$L$5*(101-Dane!K35),Rankingi!$L$6*(101-Dane!L35),Rankingi!$L$7*(101-Dane!M35)) -> 2735.745519 | N39: 30
C40: Katolicki Uniwersytet Lubelski Jana Pawła II | E40: 31 | F40: Uniwersytet_Rolniczy_im._Hugona_Kołłštaja_w_Krakowie | G40: =$F$2*Dane!H40+$F$3*Dane!I40+$F$4*Dane!J40+$F$5*Dane!K40+$F$6*Dane!L40+$F$7*Dane!M40 -> 1119 | H40: 31 | I40: Katolicki_Uniwersytet_Lubelski_Jana_Pawła_II | J40: =MAX(Rankingi!$I$2*(101-Dane!H47),Rankingi!$I$3*(101-Dane!I47),Rankingi!$I$4*(101-Dane!J47),Rankingi!$I$5*(101-Dane!K47),Rankingi!$I$6*(101-Dane!L47),Rankingi!$I$7*(101-Dane!M47)) -> 1969.92 | K40: 31 | L40: Uniwersytet_Ekonomiczny_we_Wrocławiu | M40: =MAX(Rankingi!$L$2*(101-Dane!H36),Rankingi!$L$3*(101-Dane!I36),Rankingi!$L$4*(101-Dane!J36),Rankingi!$L$5*(101-Dane!K36),Rankingi!$L$6*(101-Dane!L36),Rankingi!$L$7*(101-Dane!M36)) -> 2736.416702 | N40: 31
C41: Pomorski Uniwersytet Medyczny w Szczecinie | E41: 32 | F41: Uniwersytet_Wrocławski | G41: =$F$2*Dane!H9+$F$3*Dane!I9+$F$4*Dane!J9+$F$5*Dane!K9+$F$6*Dane!L9+$F$7*Dane!M9 -> 1105 | H41: 32 | I41: Pomorski_Uniwersytet_Medyczny_w_Szczecinie | J41: =MAX(Rankingi!$I$2*(101-Dane!H14),Rankingi!$I$3*(101-Dane!I14),Rankingi!$I$4*(101-Dane!J14),Rankingi!$I$5*(101-Dane!K14),Rankingi!$I$6*(101-Dane!L14),Rankingi!$I$7*(101-Dane!M14)) -> 1981.53 | K41: 32 | L41: Uniwersytet_Kardynała_Stefana_Wyszyńskiego_w_Warszawie | M41: =MAX(Rankingi!$L$2*(101-Dane!H42),Rankingi!$L$3*(101-Dane!I42),Rankingi!$L$4*(101-Dane!J42),Rankingi!$L$5*(101-Dane!K42),Rankingi!$L$6*(101-Dane!L42),Rankingi!$L$7*(101-Dane!M42)) -> 2745.142093 | N41: 32
C42: Politechnika Lubelska | E42: 33 | F42: Uniwersytet_Medyczny_w_Białymstoku | G42: =$F$2*Dane!H27+$F$3*Dane!I27+$F$4*Dane!J27+$F$5*Dane!K27+$F$6*Dane!L27+$F$7*Dane!M27 -> 1032 | H42: 33 | I42: Politechnika_Lubelska | J42: =MAX(Rankingi!$I$2*(101-Dane!H11),Rankingi!$I$3*(101-Dane!I11),Rankingi!$I$4*(101-Dane!J11),Rankingi!$I$5*(101-Dane!K11),Rankingi!$I$6*(101-Dane!L11),Rankingi!$I$7*(101-Dane!M11)) -> 1991.52 | K42: 33 | L42: Politechnika_Łódzka | M42: =MAX(Rankingi!$L$2*(101-Dane!H16),Rankingi!$L$3*(101-Dane!I16),Rankingi!$L$4*(101-Dane!J16),Rankingi!$L$5*(101-Dane!K16),Rankingi!$L$6*(101-Dane!L16),Rankingi!$L$7*(101-Dane!M16)) -> 2783.399574 | N42: 33
C43: Uniwersytet Ekonomiczny we Wrocławiu | E43: 34 | F43: Katolicki_Uniwersytet_Lubelski_Jana_Pawła_II | G43: =$F$2*Dane!H33+$F$3*Dane!I33+$F$4*Dane!J33+$F$5*Dane!K33+$F$6*Dane!L33+$F$7*Dane!M33 -> 1009 | H43: 34 | I43: Uniwersytet_Ekonomiczny_we_Wrocławiu | J43: =MAX(Rankingi!$I$2*(101-Dane!H48),Rankingi!$I$3*(101-Dane!I48),Rankingi!$I$4*(101-Dane!J48),Rankingi!$I$5*(101-Dane!K48),Rankingi!$I$6*(101-Dane!L48),Rankingi!$I$7*(101-Dane!M48)) -> 2007.99 | K43: 34 | L43: Uniwersytet_Rolniczy_im._Hugona_Kołłštaja_w_Krakowie | M43: =MAX(Rankingi!$L$2*(101-Dane!H40),Rankingi!$L$3*(101-Dane!I40),Rankingi!$L$4*(101-Dane!J40),Rankingi!$L$5*(101-Dane!K40),Rankingi!$L$6*(101-Dane!L40),Rankingi!$L$7*(101-Dane!M40)) -> 2806.89101 | N43: 34
C44: Uniwersytet Warmińsko-Mazurski w Olsztynie | E44: 35 | F44: Śląski_Uniwersytet_Medyczny_w_Katowicach | G44: =$F$2*Dane!H32+$F$3*Dane!I32+$F$4*Dane!J32+$F$5*Dane!K32+$F$6*Dane!L32+$F$7*Dane!M32 -> 940 | H44: 35 | I44: Uniwersytet_Warmińsko-Mazurski_w_Olsztynie | J44: =MAX(Rankingi!$I$2*(101-Dane!H45),Rankingi!$I$3*(101-Dane!I45),Rankingi!$I$4*(101-Dane!J45),Rankingi!$I$5*(101-Dane!K45),Rankingi!$I$6*(101-Dane!L45),Rankingi!$I$7*(101-Dane!M45)) -> 2016.09 | K44: 35 | L44: SWPS_Uniwersytet_Humanistyczno-Społeczny | M44: =MAX(Rankingi!$L$2*(101-Dane!H44),Rankingi!$L$3*(101-Dane!I44),Rankingi!$L$4*(101-Dane!J44),Rankingi!$L$5*(101-Dane!K44),Rankingi!$L$6*(101-Dane!L44),Rankingi!$L$7*(101-Dane!M44)) -> 2807.562194 | N44: 35
C45: Wojskowa Akademia Techniczna im. Jarosława Dąbrowskiego w Warszawie | E45: 36 | F45: Politechnika_Częstochowska | G45: =$F$2*Dane!H45+$F$3*Dane!I45+$F$4*Dane!J45+$F$5*Dane!K45+$F$6*Dane!L45+$F$7*Dane!M45 -> 842 | H45: 36 | I45: Wojskowa_Akademia_Techniczna_im._Jarosława_Dąbrowskiego_w_Warszawie | J45: =MAX(Rankingi!$I$2*(101-Dane!H50),Rankingi!$I$3*(101-Dane!I50),Rankingi!$I$4*(101-Dane!J50),Rankingi!$I$5*(101-Dane!K50),Rankingi!$I$6*(101-Dane!L50),Rankingi!$I$7*(101-Dane!M50)) -> 2024.73 | K45: 36 | L45: Zachodniopomorski_Uniwersytet_Technologiczny_w_Szczecinie | M45: =MAX(Rankingi!$L$2*(101-Dane!H41),Rankingi!$L$3*(101-Dane!I41),Rankingi!$L$4*(101-Dane!J41),Rankingi!$L$5*(101-Dane!K41),Rankingi!$L$6*(101-Dane!L41),Rankingi!$L$7*(101-Dane!M41)) -> 2874.680583 | N45: 36
C46: Uniwersytet w Białymstoku | E46: 37 | F46: Uniwersytet_Ekonomiczny_we_Wrocławiu | G46: =$F$2*Dane!H36+$F$3*Dane!I36+$F$4*Dane!J36+$F$5*Dane!K36+$F$6*Dane!L36+$F$7*Dane!M36 -> 772 | H46: 37 | I46: Uniwersytet_w_Białymstoku | J46: =MAX(Rankingi!$I$2*(101-Dane!H49),Rankingi!$I$3*(101-Dane!I49),Rankingi!$I$4*(101-Dane!J49),Rankingi!$I$5*(101-Dane!K49),Rankingi!$I$6*(101-Dane!L49),Rankingi!$I$7*(101-Dane!M49)) -> 2043.9 | K46: 37 | L46: Uniwersytet_Ekonomiczny_w_Poznaniu | M46: =MAX(Rankingi!$L$2*(101-Dane!H24),Rankingi!$L$3*(101-Dane!I24),Rankingi!$L$4*(101-Dane!J24),Rankingi!$L$5*(101-Dane!K24),Rankingi!$L$6*(101-Dane!L24),Rankingi!$L$7*(101-Dane!M24)) -> 2933.073581 | N46: 37
C47: Uniwersytet Rolniczy im. Hugona Kołłątaja w Krakowie | E47: 38 | F47: Uniwersytet_Medyczny_w_Łodzi | G47: =$F$2*Dane!H22+$F$3*Dane!I22+$F$4*Dane!J22+$F$5*Dane!K22+$F$6*Dane!L22+$F$7*Dane!M22 -> 730 | H47: 38 | I47: Uniwersytet_Rolniczy_im._Hugona_Kołłštaja_w_Krakowie | J47: =MAX(Rankingi!$I$2*(101-Dane!H36),Rankingi!$I$3*(101-Dane!I36),Rankingi!$I$4*(101-Dane!J36),Rankingi!$I$5*(101-Dane!K36),Rankingi!$I$6*(101-Dane!L36),Rankingi!$I$7*(101-Dane!M36)) -> 2047.68 | K47: 38 | L47: Politechnika_Częstochowska | M47: =MAX(Rankingi!$L$2*(101-Dane!H45),Rankingi!$L$3*(101-Dane!I45),Rankingi!$L$4*(101-Dane!J45),Rankingi!$L$5*(101-Dane!K45),Rankingi!$L$6*(101-Dane!L45),Rankingi!$L$7*(101-Dane!M45)) -> 2965.290408 | N47: 38
C48: Zachodniopomorski Uniwersytet Technologiczny w Szczecinie | E48: 39 | F48: Uniwersytet_Medyczny_im._Karola_Marcinkowskiego_w_Poznaniu | G48: =$F$2*Dane!H14+$F$3*Dane!I14+$F$4*Dane!J14+$F$5*Dane!K14+$F$6*Dane!L14+$F$7*Dane!M14 -> 678 | H48: 39 | I48: Zachodniopomorski_Uniwersytet_Technologiczny_w_Szczecinie | J48: =MAX(Rankingi!$I$2*(101-Dane!H46),Rankingi!$I$3*(101-Dane!I46),Rankingi!$I$4*(101-Dane!J46),Rankingi!$I$5*(101-Dane!K46),Rankingi!$I$6*(101-Dane!L46),Rankingi!$I$7*(101-Dane!M46)) -> 2076.84 | K48: 39 | L48: Szkoła_Główna_Handlowa_w_Warszawie | M48: =MAX(Rankingi!$L$2*(101-Dane!H13),Rankingi!$L$3*(101-Dane!I13),Rankingi!$L$4*(101-Dane!J13),Rankingi!$L$5*(101-Dane!K13),Rankingi!$L$6*(101-Dane!L13),Rankingi!$L$7*(101-Dane!M13)) -> 3046.503658 | N48: 39
C49: Uniwersytet Kardynała Stefana Wyszyńskiego w Warszawie | E49: 40 | F49: Uniwersytet_Ekonomiczny_w_Poznaniu | G49: =$F$2*Dane!H24+$F$3*Dane!I24+$F$4*Dane!J24+$F$5*Dane!K24+$F$6*Dane!L24+$F$7*Dane!M24 -> 634 | H49: 40 | I49: Uniwersytet_Kardynała_Stefana_Wyszyńskiego_w_Warszawie | J49: =MAX(Rankingi!$I$2*(101-Dane!H44),Rankingi!$I$3*(101-Dane!I44),Rankingi!$I$4*(101-Dane!J44),Rankingi!$I$5*(101-Dane!K44),Rankingi!$I$6*(101-Dane!L44),Rankingi!$I$7*(101-Dane!M44)) -> 2081.7 | K49: 40 | L49: Politechnika_Rzeszowska_im._Ignacego_Łukasiewicza | M49: =MAX(Rankingi!$L$2*(101-Dane!H47),Rankingi!$L$3*(101-Dane!I47),Rankingi!$L$4*(101-Dane!J47),Rankingi!$L$5*(101-Dane!K47),Rankingi!$L$6*(101-Dane!L47),Rankingi!$L$7*(101-Dane!M47)) -> 3145.838873 | N49: 40
C50: Politechnika Krakowska im. Tadeusza Kociuszki | E50: 41 | F50: Uniwersytet_Przyrodniczy_w_Poznaniu | G50: =$F$2*Dane!H30+$F$3*Dane!I30+$F$4*Dane!J30+$F$5*Dane!K30+$F$6*Dane!L30+$F$7*Dane!M30 -> 535 | H50: 41 | I50: Politechnika_Krakowska_im._Tadeusza_Kociuszki | J50: =MAX(Rankingi!$I$2*(101-Dane!H38),Rankingi!$I$3*(101-Dane!I38),Rankingi!$I$4*(101-Dane!J38),Rankingi!$I$5*(101-Dane!K38),Rankingi!$I$6*(101-Dane!L38),Rankingi!$I$7*(101-Dane!M38)) -> 2095.74 | K50: 41 | L50: Szkoła_Główna_Gospodarstwa_Wiejskiego_w_Warszawie | M50: =MAX(Rankingi!$L$2*(101-Dane!H29),Rankingi!$L$3*(101-Dane!I29),Rankingi!$L$4*(101-Dane!J29),Rankingi!$L$5*(101-Dane!K29),Rankingi!$L$6*(101-Dane!L29),Rankingi!$L$7*(101-Dane!M29)) -> 3203.560687 | N50: 41
C51: SWPS Uniwersytet Humanistyczno-Społeczny | E51: 42 | F51: Uniwersytet_Kardynała_Stefana_Wyszyńskiego_w_Warszawie | G51: =$F$2*Dane!H42+$F$3*Dane!I42+$F$4*Dane!J42+$F$5*Dane!K42+$F$6*Dane!L42+$F$7*Dane!M42 -> 440 | H51: 42 | I51: SWPS_Uniwersytet_Humanistyczno-Społeczny | J51: =MAX(Rankingi!$I$2*(101-Dane!H35),Rankingi!$I$3*(101-Dane!I35),Rankingi!$I$4*(101-Dane!J35),Rankingi!$I$5*(101-Dane!K35),Rankingi!$I$6*(101-Dane!L35),Rankingi!$I$7*(101-Dane!M35)) -> 2125.44 | K51: 42 | L51: Polsko-Japońska_Akademia_Technik_Komputerowych_w_Warszawie | M51: =MAX(Rankingi!$L$2*(101-Dane!H46),Rankingi!$L$3*(101-Dane!I46),Rankingi!$L$4*(101-Dane!J46),Rankingi!$L$5*(101-Dane!K46),Rankingi!$L$6*(101-Dane!L46),Rankingi!$L$7*(101-Dane!M46)) -> 3207.58779 | N51: 42
C52: Politechnika Częstochowska | E52: 43 | F52: Gdański_Uniwersytet_Medyczny | G52: =$F$2*Dane!H11+$F$3*Dane!I11+$F$4*Dane!J11+$F$5*Dane!K11+$F$6*Dane!L11+$F$7*Dane!M11 -> 369 | H52: 43 | I52: Politechnika_Częstochowska | J52: =MAX(Rankingi!$I$2*(101-Dane!H27),Rankingi!$I$3*(101-Dane!I27),Rankingi!$I$4*(101-Dane!J27),Rankingi!$I$5*(101-Dane!K27),Rankingi!$I$6*(101-Dane!L27),Rankingi!$I$7*(101-Dane!M27)) -> 2141.1 | K52: 43 | L52: Politechnika_Opolska | M52: =MAX(Rankingi!$L$2*(101-Dane!H51),Rankingi!$L$3*(101-Dane!I51),Rankingi!$L$4*(101-Dane!J51),Rankingi!$L$5*(101-Dane!K51),Rankingi!$L$6*(101-Dane!L51),Rankingi!$L$7*(101-Dane!M51)) -> 3399.546382 | N52: 43
C53: Polsko-Japońska Akademia Technik Komputerowych w Warszawie | E53: 44 | F53: Szkoła_Główna_Handlowa_w_Warszawie | G53: =$F$2*Dane!H13+$F$3*Dane!I13+$F$4*Dane!J13+$F$5*Dane!K13+$F$6*Dane!L13+$F$7*Dane!M13 -> 333 | H53: 44 | I53: Polsko-Japońska_Akademia_Technik_Komputerowych_w_Warszawie | J53: =MAX(Rankingi!$I$2*(101-Dane!H51),Rankingi!$I$3*(101-Dane!I51),Rankingi!$I$4*(101-Dane!J51),Rankingi!$I$5*(101-Dane!K51),Rankingi!$I$6*(101-Dane!L51),Rankingi!$I$7*(101-Dane!M51)) -> 2156.49 | K53: 44 | L53: Uniwersytet_Ekonomiczny_w_Katowicach | M53: =MAX(Rankingi!$L$2*(101-Dane!H49),Rankingi!$L$3*(101-Dane!I49),Rankingi!$L$4*(101-Dane!J49),Rankingi!$L$5*(101-Dane!K49),Rankingi!$L$6*(101-Dane!L49),Rankingi!$L$7*(101-Dane!M49)) -> 3658.623362 | N53: 44
C54: Politechnika Rzeszowska im. Ignacego Łukasiewicza | E54: 45 | F54: Uniwersytet_Ekonomiczny_w_Katowicach | G54: =$F$2*Dane!H49+$F$3*Dane!I49+$F$4*Dane!J49+$F$5*Dane!K49+$F$6*Dane!L49+$F$7*Dane!M49 -> 286 | H54: 45 | I54: Politechnika_Rzeszowska_im._Ignacego_Łukasiewicza | J54: =MAX(Rankingi!$I$2*(101-Dane!H41),Rankingi!$I$3*(101-Dane!I41),Rankingi!$I$4*(101-Dane!J41),Rankingi!$I$5*(101-Dane!K41),Rankingi!$I$6*(101-Dane!L41),Rankingi!$I$7*(101-Dane!M41)) -> 2223.72 | K54: 45 | L54: Uniwersytet_Przyrodniczy_w_Lublinie | M54: =MAX(Rankingi!$L$2*(101-Dane!H50),Rankingi!$L$3*(101-Dane!I50),Rankingi!$L$4*(101-Dane!J50),Rankingi!$L$5*(101-Dane!K50),Rankingi!$L$6*(101-Dane!L50),Rankingi!$L$7*(101-Dane!M50)) -> 3730.440037 | N54: 45
C55: Uniwersytet Ekonomiczny w Krakowie | E55: 46 | F55: Polsko-Japońska_Akademia_Technik_Komputerowych_w_Warszawie | G55: =$F$2*Dane!H46+$F$3*Dane!I46+$F$4*Dane!J46+$F$5*Dane!K46+$F$6*Dane!L46+$F$7*Dane!M46 -> 276 | H55: 46 | I55: Uniwersytet_Ekonomiczny_w_Krakowie | J55: =MAX(Rankingi!$I$2*(101-Dane!H52),Rankingi!$I$3*(101-Dane!I52),Rankingi!$I$4*(101-Dane!J52),Rankingi!$I$5*(101-Dane!K52),Rankingi!$I$6*(101-Dane!L52),Rankingi!$I$7*(101-Dane!M52)) -> 2225.07 | K55: 46 | L55: Politechnika_Krakowska_im._Tadeusza_Kociuszki | M55: =MAX(Rankingi!$L$2*(101-Dane!H43),Rankingi!$L$3*(101-Dane!I43),Rankingi!$L$4*(101-Dane!J43),Rankingi!$L$5*(101-Dane!K43),Rankingi!$L$6*(101-Dane!L43),Rankingi!$L$7*(101-Dane!M43)) -> 3739.165428 | N55: 46
C56: Uniwersytet Ekonomiczny w Katowicach | E56: 47 | F56: Uniwersytet_Ekonomiczny_w_Krakowie | G56: =$F$2*Dane!H48+$F$3*Dane!I48+$F$4*Dane!J48+$F$5*Dane!K48+$F$6*Dane!L48+$F$7*Dane!M48 -> 253 | H56: 47 | I56: Uniwersytet_Ekonomiczny_w_Katowicach | J56: =MAX(Rankingi!$I$2*(101-Dane!H32),Rankingi!$I$3*(101-Dane!I32),Rankingi!$I$4*(101-Dane!J32),Rankingi!$I$5*(101-Dane!K32),Rankingi!$I$6*(101-Dane!L32),Rankingi!$I$7*(101-Dane!M32)) -> 2272.05 | K56: 47 | L56: Uniwersytet_Warmińsko-Mazurski_w_Olsztynie | M56: =MAX(Rankingi!$L$2*(101-Dane!H37),Rankingi!$L$3*(101-Dane!I37),Rankingi!$L$4*(101-Dane!J37),Rankingi!$L$5*(101-Dane!K37),Rankingi!$L$6*(101-Dane!L37),Rankingi!$L$7*(101-Dane!M37)) -> 3880.114044 | N56: 47
C57: Uniwersytet Przyrodniczy w Lublinie | E57: 48 | F57: SWPS_Uniwersytet_Humanistyczno-Społeczny | G57: =$F$2*Dane!H44+$F$3*Dane!I44+$F$4*Dane!J44+$F$5*Dane!K44+$F$6*Dane!L44+$F$7*Dane!M44 -> 174 | H57: 48 | I57: Uniwersytet_Przyrodniczy_w_Lublinie | J57: =MAX(Rankingi!$I$2*(101-Dane!H39),Rankingi!$I$3*(101-Dane!I39),Rankingi!$I$4*(101-Dane!J39),Rankingi!$I$5*(101-Dane!K39),Rankingi!$I$6*(101-Dane!L39),Rankingi!$I$7*(101-Dane!M39)) -> 2284.74 | K57: 48 | L57: Uniwersytet_Ekonomiczny_w_Krakowie | M57: =MAX(Rankingi!$L$2*(101-Dane!H48),Rankingi!$L$3*(101-Dane!I48),Rankingi!$L$4*(101-Dane!J48),Rankingi!$L$5*(101-Dane!K48),Rankingi!$L$6*(101-Dane!L48),Rankingi!$L$7*(101-Dane!M48)) -> 3915.015606 | N57: 48
C58: Politechnika Opolska | E58: 49 | F58: Akademia_Leona_Komińskiego_w_Warszawie | G58: =$F$2*Dane!H25+$F$3*Dane!I25+$F$4*Dane!J25+$F$5*Dane!K25+$F$6*Dane!L25+$F$7*Dane!M25 -> 115 | H58: 49 | I58: Politechnika_Opolska | J58: =MAX(Rankingi!$I$2*(101-Dane!H26),Rankingi!$I$3*(101-Dane!I26),Rankingi!$I$4*(101-Dane!J26),Rankingi!$I$5*(101-Dane!K26),Rankingi!$I$6*(101-Dane!L26),Rankingi!$I$7*(101-Dane!M26)) -> 2295.27 | K58: 49 | L58: Uczelnia_Łazarskiego_w_Warszawie | M58: =MAX(Rankingi!$L$2*(101-Dane!H52),Rankingi!$L$3*(101-Dane!I52),Rankingi!$L$4*(101-Dane!J52),Rankingi!$L$5*(101-Dane!K52),Rankingi!$L$6*(101-Dane!L52),Rankingi!$L$7*(101-Dane!M52)) -> 3974.750972 | N58: 49
C59: Uczelnia Łazarskiego w Warszawie | E59: 50 | F59: Uczelnia_Łazarskiego_w_Warszawie | G59: =$F$2*Dane!H52+$F$3*Dane!I52+$F$4*Dane!J52+$F$5*Dane!K52+$F$6*Dane!L52+$F$7*Dane!M52 -> 108 | H59: 50 | I59: Uczelnia_Łazarskiego_w_Warszawie | J59: =MAX(Rankingi!$I$2*(101-Dane!H34),Rankingi!$I$3*(101-Dane!I34),Rankingi!$I$4*(101-Dane!J34),Rankingi!$I$5*(101-Dane!K34),Rankingi!$I$6*(101-Dane!L34),Rankingi!$I$7*(101-Dane!M34)) -> 2471.58 | K59: 50 | L59: Akademia_Leona_Komińskiego_w_Warszawie | M59: =MAX(Rankingi!$L$2*(101-Dane!H25),Rankingi!$L$3*(101-Dane!I25),Rankingi!$L$4*(101-Dane!J25),Rankingi!$L$5*(101-Dane!K25),Rankingi!$L$6*(101-Dane!L25),Rankingi!$L$7*(101-Dane!M25)) -> 4150.60115 | N59: 50

Sheet Dane
F2: Lp. według rankingu miesięcznika Perspektywy | H2: Prestiż | I2: Innow. | J2: Potenencjał naukowy | K2: Efektywność naukowa | L2: Warunki kształcenia | M2: Umiędz.
F3: 1 | G3: Uniwersytet_Warszawski | H3: 95.3 | I3: 48.29 | J3: 96.35 | K3: 100 | L3: 84.06 | M3: 54.29
F4: 2 | G4: Uniwersytet_Jagielloński | H4: 100 | I4: 30.48 | J4: 100 | K4: 85.11 | L4: 100 | M4: 53.44
F5: 3 | G5: Uniwersytet_im._Adama_Mickiewicza_w_Poznaniu | H5: 62.95 | I5: 46.84 | J5: 92.36 | K5: 81.7 | L5: 79.53 | M5: 58.98
F6: 4 | G6: Politechnika_Warszawska | H6: 71.53 | I6: 44.4 | J6: 87.92 | K6: 79.74 | L6: 47.94 | M6: 63.65
F7: 5 | G7: Politechnika_Wrocławska | H7: 55.77 | I7: 89.79 | J7: 84.27 | K7: 64.87 | L7: 90.6 | M7: 57.63 | O7: Uniwesytety oznaczone kolorem żółtym są Pareto optymalne
F8: 6 | G8: Akademia_Górniczo-Hutnicza_im._Stanisława_Staszica_w_Krakowie | H8: 59.89 | I8: 68.75 | J8: 86.58 | K8: 82.52 | L8: 67.15 | M8: 35.34
F9: 7 | G9: Uniwersytet_Wrocławski | H9: 52.79 | I9: 11.05 | J9: 91.91 | K9: 81.76 | L9: 50.47 | M9: 51.18
F10: 8 | G10: Warszawski_Uniwersytet_Medyczny | H10: 45.02 | I10: 15.24 | J10: 73.61 | K10: 76.63 | L10: 84.03 | M10: 33.71
F11: 9 | G11: Gdański_Uniwersytet_Medyczny | H11: 27.24 | I11: 3.69 | J11: 82.98 | K11: 85.51 | L11: 80.41 | M11: 48.91
F12: 10 | G12: Uniwersytet_Mikołaja_Kopernika_w_Toruniu | H12: 44.73 | I12: 19.97 | J12: 88.79 | K12: 71.94 | L12: 64.22 | M12: 13.68
F13: 11 | G13: Szkoła_Główna_Handlowa_w_Warszawie | H13: 49.49 | I13: 3.33 | J13: 94.64 | K13: 55.61 | L13: 41.05 | M13: 45.26
F14: 12 | G14: Uniwersytet_Medyczny_im._Karola_Marcinkowskiego_w_Poznaniu | H14: 27.61 | I14: 6.78 | J14: 79.04 | K14: 78.62 | L14: 87.04 | M14: 46.73
F15: 13 | G15: Uniwersytet_Śląski_w_Katowicach | H15: 38.99 | I15: 27.04 | J15: 81.46 | K15: 87.6 | L15: 46.81 | M15: 10.07
F16: 14 | G16: Politechnika_Łódzka | H16: 34.57 | I16: 66.23 | J16: 79.65 | K16: 59.53 | L16: 58.27 | M16: 44.97
F17: 15 | G17: Politechnika_Gdańska | H17: 33 | I17: 67.64 | J17: 74.9 | K17: 63.21 | L17: 76.85 | M17: 36.52
F18: 16 | G18: Uniwersytet_Łódzki | H18: 36.18 | I18: 21.06 | J18: 79.33 | K18: 72.26 | L18: 48.72 | M18: 38.14
F19: 17 | G19: Politechnika_Poznańska | H19: 39.66 | I19: 43.86 | J19: 77.85 | K19: 69.75 | L19: 29.37 | M19: 33.14
F20: 18 | G20: Uniwersytet_Medyczny_im._Piastów_Śląskich_we_Wrocławiu | H20: 29.86 | I20: 20.72 | J20: 73.85 | K20: 72.84 | L20: 78.53 | M20: 38.39
F21: 19 | G21: Politechnika_Śląska_w_Gliwicach | H21: 43.5 | I21: 30.44 | J21: 78.76 | K21: 60.24 | L21: 49.5 | M21: 31.46
F22: 20 | G22: Uniwersytet_Medyczny_w_Łodzi | H22: 30.18 | I22: 7.3 | J22: 81.2 | K22: 72.61 | L22: 78.19 | M22: 24.5
F23: 21 | G23: Uniwersytet_Gdański | H23: 35.6 | I23: 27.9 | J23: 80.95 | K23: 68.32 | L23: 49.85 | M23: 16.76
F24: 22 | G24: Uniwersytet_Ekonomiczny_w_Poznaniu | H24: 39.34 | I24: 6.34 | J24: 81.51 | K24: 57.3 | L24: 66.86 | M24: 26.18
F25: 23 | G25: Akademia_Leona_Komińskiego_w_Warszawie | H25: 31.74 | I25: 1.15 | J25: 79.98 | K25: 39.16 | L25: 42.28 | M25: 100
F26: 24 | G26: Uniwersytet_Medyczny_w_Lublinie | H26: 15.99 | I26: 32.16 | J26: 73.29 | K26: 63.81 | L26: 92.04 | M26: 56.9
F27: 25 | G27: Uniwersytet_Medyczny_w_Białymstoku | H27: 21.7 | I27: 10.32 | J27: 88.28 | K27: 74.85 | L27: 72.63 | M27: 17.83
F28: 26 | G28: Uniwersytet_Marii_Curie-Skłodowskiej_w_Lublinie | H28: 34.65 | I28: 21.42 | J28: 74.19 | K28: 81.65 | L28: 29.73 | M28: 12.1
F29: 27 | G29: Szkoła_Główna_Gospodarstwa_Wiejskiego_w_Warszawie | H29: 41.4 | I29: 15.46 | J29: 75.22 | K29: 53.27 | L29: 34.41 | M29: 17.94
F30: 28 | G30: Uniwersytet_Przyrodniczy_w_Poznaniu | H30: 33.31 | I30: 5.35 | J30: 76.94 | K30: 65.66 | L30: 46.9 | M30: 8.81
F31: 29 | G31: Uniwersytet_Przyrodniczy_we_Wrocławiu | H31: 28.43 | I31: 43.63 | J31: 78.71 | K31: 61.29 | L31: 36.02 | M31: 14.83
F32: 30 | G32: Śląski_Uniwersytet_Medyczny_w_Katowicach | H32: 16.85 | I32: 9.4 | J32: 77.03 | K32: 72.74 | L32: 71.85 | M32: 20.05
F33: 31 | G33: Katolicki_Uniwersytet_Lubelski_Jana_Pawła_II | H33: 30.61 | I33: 10.09 | J33: 73.17 | K33: 62.23 | L33: 51.67 | M33: 18.03
F34: 32 | G34: Pomorski_Uniwersytet_Medyczny_w_Szczecinie | H34: 9.46 | I34: 13.32 | J34: 76.42 | K34: 74.87 | L34: 45.08 | M34: 40.13
F35: 33 | G35: Politechnika_Lubelska | H35: 22.28 | I35: 100 | J35: 64.85 | K35: 60.24 | L35: 19.96 | M35: 21.22
F36: 34 | G36: Uniwersytet_Ekonomiczny_we_Wrocławiu | H36: 25.16 | I36: 7.72 | J36: 79.04 | K36: 60.23 | L36: 30.68 | M36: 25.69
F37: 35 | G37: Uniwersytet_Warmińsko-Mazurski_w_Olsztynie | H37: 29.59 | I37: 30.33 | J37: 77.72 | K37: 43.19 | L37: 52.12 | M37: 11.13
F38: 36 | G38: Wojskowa_Akademia_Techniczna_im._Jarosława_Dąbrowskiego_w_Warszawie | H38: 23.38 | I38: 16 | J38: 66.2 | K38: 68.76 | L38: 51.25 | M38: 2.06
F39: 37 | G39: Uniwersytet_w_Białymstoku | H39: 16.38 | I39: 17.77 | J39: 70.14 | K39: 78.9 | L39: 31.43 | M39: 7.46
F40: 38 | G40: Uniwersytet_Rolniczy_im._Hugona_Kołłštaja_w_Krakowie | H40: 30.12 | I40: 11.19 | J40: 71.35 | K40: 59.18 | L40: 32.1 | M40: 6.94
F41: 39 | G41: Zachodniopomorski_Uniwersytet_Technologiczny_w_Szczecinie | H41: 18.64 | I41: 50.66 | J41: 77.62 | K41: 58.17 | L41: 35.92 | M41: 8.07
F42: 40 | G42: Uniwersytet_Kardynała_Stefana_Wyszyńskiego_w_Warszawie | H42: 30.98 | I42: 4.4 | J42: 76.01 | K42: 60.1 | L42: 23.59 | M42: 4.17
F43: 41 | G43: Politechnika_Krakowska_im._Tadeusza_Kociuszki | H43: 33.86 | I43: 20.8 | J43: 61.83 | K43: 45.29 | L43: 47.29 | M43: 19.59
F44: 42 | G44: SWPS_Uniwersytet_Humanistyczno-Społeczny | H44: 23.9 | I44: 1.74 | J44: 71.91 | K44: 59.17 | L44: 23.36 | M44: 27.05
F45: 43 | G45: Politechnika_Częstochowska | H45: 26.33 | I45: 8.42 | J45: 68.77 | K45: 56.82 | L45: 37.77 | M45: 12.24
F46: 44 | G46: Polsko-Japońska_Akademia_Technik_Komputerowych_w_Warszawie | H46: 24.08 | I46: 2.76 | J46: 75.32 | K46: 53.21 | L46: 12.14 | M46: 29.72
F47: 45 | G47: Politechnika_Rzeszowska_im._Ignacego_Łukasiewicza | H47: 28.04 | I47: 47.02 | J47: 63.43 | K47: 54.13 | L47: 17.06 | M47: 5.94
F48: 46 | G48: Uniwersytet_Ekonomiczny_w_Krakowie | H48: 26.63 | I48: 2.53 | J48: 77.22 | K48: 42.67 | L48: 17.26 | M48: 23.45
F49: 47 | G49: Uniwersytet_Ekonomiczny_w_Katowicach | H49: 25.3 | I49: 2.86 | J49: 69.05 | K49: 46.49 | L49: 29.34 | M49: 21.15
F50: 47 | G50: Uniwersytet_Przyrodniczy_w_Lublinie | H50: 26.01 | I50: 29.54 | J50: 67.72 | K50: 45.42 | L50: 37.41 | M50: 3.89
F51: 49 | G51: Politechnika_Opolska | H51: 21.13 | I51: 28.74 | J51: 65.45 | K51: 50.35 | L51: 25.62 | M51: 17.66
F52: 50 | G52: Uczelnia_Łazarskiego_w_Warszawie | H52: 18.59 | I52: 1.08 | J52: 54.06 | K52: 41.78 | L52: 35.19 | M52: 63.78

Sheet Roboczy
B2: 1 | C2: 2 | D2: 3 | E2: 4 | F2: 5 | G2: 6
B3: =2+Rankingi!M7 -> 3
B4: =CONCATENATE("Dane!h",$B$3) -> Dane!h3 | C4: =CONCATENATE("Dane!i",$B$3) -> Dane!i3 | D4: =CONCATENATE("Dane!j",$B$3) -> Dane!j3 | E4: =CONCATENATE("Dane!k",$B$3) -> Dane!k3 | F4: =CONCATENATE("Dane!l",$B$3) -> Dane!l3 | G4: =CONCATENATE("Dane!m",$B$3) -> Dane!m3
B6: =1/(101-INDIRECT(B4)) -> 0.1754385965 | C6: =1/(101-INDIRECT(C4)) -> 0.01897173212 | D6: 0.2150537634 | E6: 1 | F6: 0.05903187721 | G6: 0.02140869193 | H6: =SUM(B6:G6) -> 1.489904661
B7: =100*B6/$H$6 -> 11.77515589 | C7: =100*C6/$H$6 -> 1.273352088 | D7: 14.43406206 | E7: 67.11838858 | F7: 3.962124474 | G7: 1.436916904 | H7: =SUM(B7:G7) -> 100
B9: =1/(101-Dane!H52) -> 0.0121344497 | C9: =1/(101-Dane!I52) -> 0.01000800641 | D9: =1/(101-Dane!J52) -> 0.02130379207 | E9: =1/(101-Dane!K52) -> 0.0168861871 | F9: =1/(101-Dane!L52) -> 0.01519525908 | G9: =1/(101-Dane!M52) -> 0.02686727566
